[Event "*** Titled Tuesday Blitz"]
[Site "Chess.com"]
[Date "2021.03.09"]
[Round "6"]
[White "night_player"]
[Black "Pantata007"]
[Result "1-0"]
[WhiteElo "2177"]
[BlackElo "2302"]
[TimeControl "180+1"]
[EndTime "11:11:13 PST"]
[Termination "night_player won by checkmate"]

1. e4 {[%clk 0:03:00.9]} 1... e5 {[%clk 0:02:59.1]} 2. Nf3 {[%clk 0:03:00]} 2...
Nc6 {[%clk 0:02:58.8]} 3. Bb5 {[%clk 0:02:59.3]} 3... a6 {[%clk 0:02:58.3]} 4.
Ba4 {[%clk 0:02:59.8]} 4... Nf6 {[%clk 0:02:58.1]} 5. O-O {[%clk 0:02:59.9]}
5... Be7 {[%clk 0:02:57.4]} 6. c3 {[%clk 0:02:59.5]} 6... Nxe4 {[%clk
0:02:55.1]} 7. Re1 {[%clk 0:02:58.8]} 7... Nc5 {[%clk 0:02:53.7]} 8. Nxe5 {[%clk
0:02:53.7]} 8... Nxe5 {[%clk 0:02:42.6]} 9. Rxe5 {[%clk 0:02:52.6]} 9... Nxa4
{[%clk 0:02:33.1]} 10. Qxa4 {[%clk 0:02:51.5]} 10... O-O {[%clk 0:02:30.3]} 11.
d4 {[%clk 0:02:50.5]} 11... d6 {[%clk 0:02:19.8]} 12. Re1 {[%clk 0:02:49.4]}
12... Bf5 {[%clk 0:02:16.6]} 13. Nd2 {[%clk 0:02:47.7]} 13... Re8 {[%clk
0:02:15.5]} 14. Nf3 {[%clk 0:02:46.8]} 14... b5 {[%clk 0:02:08.9]} 15. Qb3
{[%clk 0:02:41.8]} 15... Bf6 {[%clk 0:02:07.2]} 16. Bf4 {[%clk 0:02:37]} 16...
h6 {[%clk 0:02:00.6]} 17. h3 {[%clk 0:02:28.4]} 17... Qd7 {[%clk 0:01:58.4]} 18.
a4 {[%clk 0:02:11.8]} 18... Be4 {[%clk 0:01:44.5]} 19. Nd2 {[%clk 0:01:41.4]}
19... Bc6 {[%clk 0:01:43.9]} 20. axb5 {[%clk 0:01:35.6]} 20... axb5 {[%clk
0:01:42.4]} 21. d5 {[%clk 0:01:31.5]} 21... Bb7 {[%clk 0:01:38]} 22. c4 {[%clk
0:01:23.9]} 22... Rab8 {[%clk 0:01:30.9]} 23. cxb5 {[%clk 0:01:18]} 23... Qf5
{[%clk 0:01:23.2]} 24. Qg3 {[%clk 0:01:07]} 24... g5 {[%clk 0:00:46.9]} 25. h4
{[%clk 0:00:50.7]} 25... Qxf4 {[%clk 0:00:45.3]} 26. Qxf4 {[%clk 0:00:42.7]}
26... gxf4 {[%clk 0:00:44.6]} 27. Ne4 {[%clk 0:00:39.3]} 27... Bxh4 {[%clk
0:00:39.5]} 28. g3 {[%clk 0:00:35.5]} 28... fxg3 {[%clk 0:00:37.7]} 29. fxg3
{[%clk 0:00:36.4]} 29... Bg5 {[%clk 0:00:26]} 30. Rad1 {[%clk 0:00:31.8]} 30...
f5 {[%clk 0:00:23.5]} 31. Nc3 {[%clk 0:00:27]} 31... Kf7 {[%clk 0:00:22.9]} 32.
Rf1 {[%clk 0:00:26]} 32... Kg6 {[%clk 0:00:21.8]} 33. b6 {[%clk 0:00:17.7]}
33... cxb6 {[%clk 0:00:21]} 34. Nb5 {[%clk 0:00:17.6]} 34... Be3+ {[%clk
0:00:16.7]} 35. Kh2 {[%clk 0:00:16.9]} 35... Bc5 {[%clk 0:00:17.6]} 36. Nc7
{[%clk 0:00:16.3]} 36... Re2+ {[%clk 0:00:16.6]} 37. Kh3 {[%clk 0:00:15.7]}
37... Rxb2 {[%clk 0:00:15.4]} 38. Rde1 {[%clk 0:00:16.2]} 38... Rb4 {[%clk
0:00:03.3]} 39. Re6+ {[%clk 0:00:16.4]} 39... Kh7 {[%clk 0:00:02.6]} 40. Rxf5
{[%clk 0:00:15.3]} 40... Rg8 {[%clk 0:00:03]} 41. Ne8 {[%clk 0:00:13.5]} 41...
Rb3 {[%clk 0:00:02]} 42. Rf7+ {[%clk 0:00:08.6]} 42... Kh8 {[%clk 0:00:01.9]}
43. Rxh6# {[%clk 0:00:09]} 1-0

[Event "*** Titled Tuesday Blitz"]
[Site "Chess.com"]
[Date "2021.03.09"]
[Round "6"]
[White "djano"]
[Black "Promacherr"]
[Result "0-1"]
[WhiteElo "2470"]
[BlackElo "2614"]
[TimeControl "180+1"]
[EndTime "11:11:14 PST"]
[Termination "Promacherr won by resignation"]

1. e4 {[%clk 0:03:00.9]} 1... e6 {[%clk 0:03:00.2]} 2. c4 {[%clk 0:02:57.9]}
2... d5 {[%clk 0:03:00.4]} 3. cxd5 {[%clk 0:02:56.6]} 3... exd5 {[%clk
0:03:01.3]} 4. Qb3 {[%clk 0:02:54.3]} 4... Bd6 {[%clk 0:02:42.6]} 5. exd5 {[%clk
0:02:42.6]} 5... Nf6 {[%clk 0:02:42.6]} 6. Nf3 {[%clk 0:02:42.3]} 6... O-O
{[%clk 0:02:42.8]} 7. Nc3 {[%clk 0:02:41.4]} 7... Re8+ {[%clk 0:02:27.5]} 8. Be2
{[%clk 0:02:41.5]} 8... b5 {[%clk 0:02:27.8]} 9. Nxb5 {[%clk 0:02:30.8]} 9...
Qe7 {[%clk 0:02:23.2]} 10. Nbd4 {[%clk 0:02:03.3]} 10... Ba6 {[%clk 0:02:16.1]}
11. d3 {[%clk 0:02:03.5]} 11... c5 {[%clk 0:02:16.3]} 12. dxc6 {[%clk
0:01:59.8]} 12... Nxc6 {[%clk 0:02:09.6]} 13. Be3 {[%clk 0:01:51.8]} 13... Bb4+
{[%clk 0:01:52.3]} 14. Kf1 {[%clk 0:01:47.7]} 14... Rac8 {[%clk 0:01:43.8]} 15.
Nxc6 {[%clk 0:01:36.9]} 15... Rxc6 {[%clk 0:01:44.7]} 16. Nd4 {[%clk 0:01:37]}
16... Rb6 {[%clk 0:01:38.7]} 17. Qa4 {[%clk 0:01:30.5]} 17... Nd5 {[%clk
0:01:29.2]} 18. Nf5 {[%clk 0:01:21.9]} 18... Qe5 {[%clk 0:01:06]} 19. g4 {[%clk
0:00:27.2]} 19... g6 {[%clk 0:00:48.1]} 20. Bxb6 {[%clk 0:00:26.8]} 20... Qxe2+
{[%clk 0:00:46.7]} 21. Kg2 {[%clk 0:00:27.2]} 21... Qxg4+ {[%clk 0:00:38]} 22.
Ng3 {[%clk 0:00:25.4]} 22... Nf4+ {[%clk 0:00:38]} 23. Kg1 {[%clk 0:00:24.1]}
23... Nh3+ {[%clk 0:00:37.1]} 24. Kg2 {[%clk 0:00:24.2]} 24... Nf4+ {[%clk
0:00:22]} 25. Kf1 {[%clk 0:00:23.7]} 25... Bxd3+ {[%clk 0:00:20.2]} 26. Kg1
{[%clk 0:00:24.1]} 26... Nh3+ {[%clk 0:00:20.5]} 27. Kg2 {[%clk 0:00:24.5]}
27... Nf4+ {[%clk 0:00:20.4]} 28. Kg1 {[%clk 0:00:24.9]} 28... Re4 {[%clk
0:00:19.9]} 29. Qxa7 {[%clk 0:00:19.9]} 29... Nh3+ {[%clk 0:00:18]} 30. Kg2
{[%clk 0:00:20.2]} 30... Nf4+ {[%clk 0:00:18.8]} 31. Kg1 {[%clk 0:00:20.4]}
31... Qf3 {[%clk 0:00:18.4]} 32. Qb8+ {[%clk 0:00:15.1]} 32... Bf8 {[%clk
0:00:18.5]} 33. Qxf4 {[%clk 0:00:12.5]} 33... Rxf4 {[%clk 0:00:19.4]} 34. Be3
{[%clk 0:00:12.2]} 34... Re4 {[%clk 0:00:18.8]} 35. a4 {[%clk 0:00:10.3]} 35...
Rxe3 {[%clk 0:00:16.7]} 36. fxe3 {[%clk 0:00:11.2]} 36... Qxe3+ {[%clk
0:00:17.3]} 37. Kg2 {[%clk 0:00:11.7]} 37... Qd2+ {[%clk 0:00:15.9]} 38. Kf3
{[%clk 0:00:10.8]} 38... Bc5 {[%clk 0:00:15.9]} 39. Rhf1 {[%clk 0:00:09.8]}
39... Bxf1 {[%clk 0:00:15.6]} 40. Rxf1 {[%clk 0:00:10.7]} 40... Qxb2 {[%clk
0:00:15]} 41. Ne4 {[%clk 0:00:11.2]} 41... Qb3+ {[%clk 0:00:15]} 42. Kg2 {[%clk
0:00:09.2]} 42... Bd4 {[%clk 0:00:14.7]} 43. Nd2 {[%clk 0:00:07.6]} 43... Qxa4
{[%clk 0:00:13.7]} 44. Nf3 {[%clk 0:00:08.1]} 44... Bf6 {[%clk 0:00:13.1]} 45.
Rf2 {[%clk 0:00:07.3]} 45... Kg7 {[%clk 0:00:13.4]} 46. Re2 {[%clk 0:00:07.2]}
46... h5 {[%clk 0:00:13.8]} 47. h4 {[%clk 0:00:07.2]} 47... Bxh4 {[%clk
0:00:13.2]} 0-1

[Event "*** Titled Tuesday Blitz"]
[Site "Chess.com"]
[Date "2021.03.09"]
[Round "6"]
[White "freshfoodcompany"]
[Black "13MiRacLe"]
[Result "0-1"]
[WhiteElo "2444"]
[BlackElo "2681"]
[TimeControl "180+1"]
[EndTime "11:11:17 PST"]
[Termination "13MiRacLe won by resignation"]

1. d4 {[%clk 0:03:00.9]} 1... Nf6 {[%clk 0:02:59.8]} 2. c4 {[%clk 0:03:00.8]}
2... g6 {[%clk 0:03:00.1]} 3. Nc3 {[%clk 0:03:00.8]} 3... d5 {[%clk 0:03:00.6]}
4. Nf3 {[%clk 0:03:00.4]} 4... Bg7 {[%clk 0:03:00.5]} 5. Qb3 {[%clk 0:03:00.3]}
5... dxc4 {[%clk 0:03:00.2]} 6. Qxc4 {[%clk 0:03:01.2]} 6... O-O {[%clk
0:03:00.7]} 7. e4 {[%clk 0:03:01.7]} 7... e5 {[%clk 0:03:00.8]} 8. dxe5 {[%clk
0:02:46.4]} 8... Ng4 {[%clk 0:03:00.5]} 9. Bf4 {[%clk 0:02:39]} 9... Be6 {[%clk
0:03:00.2]} 10. Qb5 {[%clk 0:02:32.8]} 10... Nc6 {[%clk 0:02:45.9]} 11. h3
{[%clk 0:02:22.9]} 11... a6 {[%clk 0:01:25.9]} 12. Qc5 {[%clk 0:02:21.7]} 12...
Ngxe5 {[%clk 0:00:54.1]} 13. Nxe5 {[%clk 0:02:20.4]} 13... Nxe5 {[%clk
0:00:52.8]} 14. Bxe5 {[%clk 0:02:16.2]} 14... b6 {[%clk 0:00:52.8]} 15. Qxc7
{[%clk 0:02:12.4]} 15... Qxc7 {[%clk 0:00:52.8]} 16. Bxc7 {[%clk 0:02:12]} 16...
Rfc8 {[%clk 0:00:53.5]} 17. Bxb6 {[%clk 0:01:15.5]} 17... Rxc3 {[%clk
0:00:52.6]} 18. bxc3 {[%clk 0:00:34.5]} 18... Bxc3+ {[%clk 0:00:51.9]} 19. Kd1
{[%clk 0:00:33.6]} 19... Bxa1 {[%clk 0:00:51.6]} 20. Bd3 {[%clk 0:00:19.5]}
20... Bxa2 {[%clk 0:00:50.8]} 21. Ke2 {[%clk 0:00:17]} 21... Bg7 {[%clk
0:00:47.1]} 22. Rc1 {[%clk 0:00:16.3]} 22... a5 {[%clk 0:00:44]} 23. Rc7 {[%clk
0:00:13]} 23... a4 {[%clk 0:00:40.5]} 24. Bc5 {[%clk 0:00:11.4]} 24... a3 {[%clk
0:00:33.6]} 25. Rb7 {[%clk 0:00:10.9]} 25... Be6 {[%clk 0:00:28]} 26. Bb1 {[%clk
0:00:08.5]} 26... a2 {[%clk 0:00:27.7]} 27. Bxa2 {[%clk 0:00:08.6]} 27... Rxa2+
{[%clk 0:00:27.7]} 28. Kf3 {[%clk 0:00:09]} 28... h5 {[%clk 0:00:27.8]} 29. Rb8+
{[%clk 0:00:07.7]} 29... Kh7 {[%clk 0:00:27.5]} 30. Bf8 {[%clk 0:00:08.2]} 30...
Bd4 {[%clk 0:00:20.4]} 31. Bd6 {[%clk 0:00:07.1]} 31... Rxf2+ {[%clk 0:00:19.6]}
32. Kg3 {[%clk 0:00:06.8]} 32... Rd2 {[%clk 0:00:18.7]} 33. Kh2 {[%clk
0:00:06.1]} 33... Bg1+ {[%clk 0:00:16.6]} 34. Kxg1 {[%clk 0:00:06.1]} 34... Rxd6
{[%clk 0:00:17.5]} 35. Rb4 {[%clk 0:00:04.2]} 35... Rc6 {[%clk 0:00:17.2]} 36.
Kf2 {[%clk 0:00:04.5]} 36... Rc4 {[%clk 0:00:17.4]} 37. Rxc4 {[%clk 0:00:04.2]}
37... Bxc4 {[%clk 0:00:17.5]} 38. Ke3 {[%clk 0:00:05.1]} 38... Kg7 {[%clk
0:00:18.1]} 39. Kf4 {[%clk 0:00:05.9]} 39... Bf1 {[%clk 0:00:17.7]} 40. Kg5
{[%clk 0:00:04.6]} 40... Bxg2 {[%clk 0:00:17.5]} 41. h4 {[%clk 0:00:04.1]} 41...
Bxe4 {[%clk 0:00:17.4]} 42. Kf4 {[%clk 0:00:04]} 42... Bd5 {[%clk 0:00:17.8]}
43. Ke5 {[%clk 0:00:04.2]} 43... Be6 {[%clk 0:00:18.3]} 44. Kf4 {[%clk
0:00:04.6]} 44... Kf6 {[%clk 0:00:18.8]} 45. Kg3 {[%clk 0:00:04.9]} 45... Kf5
{[%clk 0:00:19.3]} 46. Kf3 {[%clk 0:00:05.5]} 46... Bd5+ {[%clk 0:00:18.2]} 47.
Kg3 {[%clk 0:00:05.9]} 47... Ke4 {[%clk 0:00:18.4]} 48. Kf2 {[%clk 0:00:06.4]}
48... Kf4 {[%clk 0:00:18.5]} 49. Kg1 {[%clk 0:00:07]} 49... Kg3 {[%clk
0:00:18.3]} 50. Kf1 {[%clk 0:00:07.1]} 50... Bf3 {[%clk 0:00:18.7]} 51. Kg1
{[%clk 0:00:07.4]} 51... f6 {[%clk 0:00:18.9]} 52. Kf1 {[%clk 0:00:07.2]} 52...
g5 {[%clk 0:00:19.4]} 53. Kg1 {[%clk 0:00:06.5]} 53... gxh4 {[%clk 0:00:18.9]}
54. Kf1 {[%clk 0:00:06.5]} 54... h3 {[%clk 0:00:19.4]} 0-1

[Event "*** Titled Tuesday Blitz"]
[Site "Chess.com"]
[Date "2021.03.09"]
[Round "6"]
[White "Alexsur1981"]
[Black "Blazinq"]
[Result "1/2-1/2"]
[WhiteElo "2832"]
[BlackElo "2633"]
[TimeControl "180+1"]
[EndTime "11:11:18 PST"]
[Termination "Game drawn by stalemate"]

1. e4 {[%clk 0:03:00.9]} 1... c5 {[%clk 0:03:00.1]} 2. Nc3 {[%clk 0:02:59.4]}
2... d6 {[%clk 0:02:59.6]} 3. f4 {[%clk 0:02:57.3]} 3... g6 {[%clk 0:02:58.9]}
4. d4 {[%clk 0:02:57.2]} 4... cxd4 {[%clk 0:02:56.2]} 5. Qxd4 {[%clk 0:02:58.1]}
5... Nf6 {[%clk 0:02:56.7]} 6. Nf3 {[%clk 0:02:58.1]} 6... Bg7 {[%clk
0:02:55.8]} 7. Bd3 {[%clk 0:02:58.4]} 7... O-O {[%clk 0:02:50.2]} 8. Qf2 {[%clk
0:02:58.7]} 8... Ng4 {[%clk 0:02:48]} 9. Qe2 {[%clk 0:02:58.2]} 9... a6 {[%clk
0:02:45.5]} 10. h3 {[%clk 0:02:58.1]} 10... Nf6 {[%clk 0:02:44.3]} 11. Qf2
{[%clk 0:02:58.5]} 11... b5 {[%clk 0:02:39.6]} 12. a3 {[%clk 0:02:57]} 12... Bb7
{[%clk 0:02:39.3]} 13. O-O {[%clk 0:02:56.8]} 13... d5 {[%clk 0:02:27.4]} 14. e5
{[%clk 0:02:54.8]} 14... Ne4 {[%clk 0:01:55.4]} 15. Bxe4 {[%clk 0:02:54.5]}
15... dxe4 {[%clk 0:01:56.3]} 16. Ng5 {[%clk 0:02:55]} 16... Nc6 {[%clk
0:01:52]} 17. Ngxe4 {[%clk 0:02:51.7]} 17... b4 {[%clk 0:01:30.9]} 18. axb4
{[%clk 0:02:50.6]} 18... Nxb4 {[%clk 0:01:31.8]} 19. Be3 {[%clk 0:02:47.3]}
19... Qc7 {[%clk 0:01:28.2]} 20. Nc5 {[%clk 0:02:38.9]} 20... Bc6 {[%clk
0:01:16.2]} 21. Rfd1 {[%clk 0:02:34.1]} 21... g5 {[%clk 0:01:04.1]} 22. Rd4
{[%clk 0:02:06.5]} 22... a5 {[%clk 0:00:58.9]} 23. Rad1 {[%clk 0:01:56.1]} 23...
Kh8 {[%clk 0:00:36.4]} 24. Nd3 {[%clk 0:01:28.1]} 24... Nxd3 {[%clk 0:00:32.3]}
25. cxd3 {[%clk 0:01:26.9]} 25... gxf4 {[%clk 0:00:25.8]} 26. Bxf4 {[%clk
0:01:24]} 26... Bxe5 {[%clk 0:00:22.6]} 27. Re1 {[%clk 0:01:20.2]} 27... Bxf4
{[%clk 0:00:19.1]} 28. Rxf4 {[%clk 0:01:21.1]} 28... Rg8 {[%clk 0:00:17.6]} 29.
g4 {[%clk 0:01:19]} 29... f6 {[%clk 0:00:15.4]} 30. Qe3 {[%clk 0:01:10.6]} 30...
Rab8 {[%clk 0:00:14.2]} 31. Rf2 {[%clk 0:01:04.9]} 31... Rb4 {[%clk 0:00:07.9]}
32. d4 {[%clk 0:01:03]} 32... Qd6 {[%clk 0:00:04.7]} 33. d5 {[%clk 0:01:01.3]}
33... Bxd5 {[%clk 0:00:04.1]} 34. Nxd5 {[%clk 0:01:00.9]} 34... Qxd5 {[%clk
0:00:05]} 35. Qxe7 {[%clk 0:01:00.8]} 35... Qd4 {[%clk 0:00:04.1]} 36. Qxf6+
{[%clk 0:00:46.6]} 36... Qxf6 {[%clk 0:00:04]} 37. Rxf6 {[%clk 0:00:47.5]} 37...
Rxb2 {[%clk 0:00:04.9]} 38. Rf7 {[%clk 0:00:46.9]} 38... Rc8 {[%clk 0:00:03]}
39. Ra7 {[%clk 0:00:46.6]} 39... Ra2 {[%clk 0:00:02.7]} 40. g5 {[%clk
0:00:45.1]} 40... a4 {[%clk 0:00:03.1]} 41. h4 {[%clk 0:00:45.3]} 41... a3
{[%clk 0:00:03.6]} 42. h5 {[%clk 0:00:44.4]} 42... Rg8 {[%clk 0:00:04.2]} 43.
Re5 {[%clk 0:00:43.5]} 43... Rc8 {[%clk 0:00:04.5]} 44. Re1 {[%clk 0:00:42.3]}
44... Rg8 {[%clk 0:00:05.1]} 45. Ra5 {[%clk 0:00:40.7]} 45... Rb2 {[%clk
0:00:04]} 46. Ra1 {[%clk 0:00:33.1]} 46... a2 {[%clk 0:00:03.1]} 47. R1xa2
{[%clk 0:00:32.4]} 47... Rxa2 {[%clk 0:00:04]} 48. Rxa2 {[%clk 0:00:33.1]} 48...
Rxg5+ {[%clk 0:00:04.7]} 49. Rg2 {[%clk 0:00:32.3]} 49... Rxh5 {[%clk
0:00:05.4]} 50. Rh2 {[%clk 0:00:33]} 50... Rxh2 {[%clk 0:00:05.5]} 51. Kxh2
{[%clk 0:00:33.9]} 51... Kg7 {[%clk 0:00:06.4]} 52. Kh1 {[%clk 0:00:34.8]} 52...
Kg6 {[%clk 0:00:05.9]} 53. Kg1 {[%clk 0:00:35.7]} 53... Kg5 {[%clk 0:00:06.2]}
54. Kh1 {[%clk 0:00:36.6]} 54... Kg4 {[%clk 0:00:07.1]} 55. Kg1 {[%clk
0:00:37.5]} 55... h6 {[%clk 0:00:08]} 56. Kh1 {[%clk 0:00:38.4]} 56... h5 {[%clk
0:00:08.9]} 57. Kg1 {[%clk 0:00:39.3]} 57... h4 {[%clk 0:00:09.8]} 58. Kh1
{[%clk 0:00:40.2]} 58... h3 {[%clk 0:00:10.7]} 59. Kg1 {[%clk 0:00:41.1]} 59...
Kh4 {[%clk 0:00:11.6]} 60. Kh1 {[%clk 0:00:42]} 60... Kg3 {[%clk 0:00:12.5]} 61.
Kg1 {[%clk 0:00:42.6]} 61... h2+ {[%clk 0:00:13.4]} 62. Kh1 {[%clk 0:00:43.5]}
62... Kh3 {[%clk 0:00:14.3]} 1/2-1/2

[Event "*** Titled Tuesday Blitz"]
[Site "Chess.com"]
[Date "2021.03.09"]
[Round "6"]
[White "Ajedrez_con_German"]
[Black "Speed-O-Sonic"]
[Result "1/2-1/2"]
[WhiteElo "2542"]
[BlackElo "2340"]
[TimeControl "180+1"]
[EndTime "11:11:19 PST"]
[Termination "Game drawn - insufficient material"]

1. b3 {[%clk 0:02:58.4]} 1... e5 {[%clk 0:02:57.7]} 2. Bb2 {[%clk 0:02:59.3]}
2... Nc6 {[%clk 0:02:57.6]} 3. e3 {[%clk 0:02:59.5]} 3... d6 {[%clk 0:02:57.6]}
4. Bb5 {[%clk 0:02:57]} 4... Ne7 {[%clk 0:02:55.6]} 5. Nf3 {[%clk 0:02:54]} 5...
g6 {[%clk 0:02:53.8]} 6. d4 {[%clk 0:02:53.5]} 6... exd4 {[%clk 0:02:47.5]} 7.
Nxd4 {[%clk 0:02:43.7]} 7... Rg8 {[%clk 0:02:38]} 8. O-O {[%clk 0:02:43]} 8...
Bd7 {[%clk 0:02:34.1]} 9. c4 {[%clk 0:02:37.3]} 9... a6 {[%clk 0:02:33.2]} 10.
Bxc6 {[%clk 0:02:36.1]} 10... Bxc6 {[%clk 0:02:34.1]} 11. Nxc6 {[%clk 0:02:34]}
11... Nxc6 {[%clk 0:02:35]} 12. Nc3 {[%clk 0:02:33]} 12... Qd7 {[%clk
0:02:30.1]} 13. Nd5 {[%clk 0:02:31.6]} 13... Be7 {[%clk 0:02:28.4]} 14. Qf3
{[%clk 0:02:24.4]} 14... f5 {[%clk 0:02:26.6]} 15. Rad1 {[%clk 0:02:20.9]} 15...
O-O-O {[%clk 0:02:26.3]} 16. c5 {[%clk 0:02:11.2]} 16... dxc5 {[%clk 0:02:21.9]}
17. Nb6+ {[%clk 0:02:08.3]} 17... cxb6 {[%clk 0:02:22.5]} 18. Rxd7 {[%clk
0:02:07.8]} 18... Rxd7 {[%clk 0:02:23.4]} 19. Rd1 {[%clk 0:02:00.1]} 19... Rgd8
{[%clk 0:02:18.2]} 20. Rxd7 {[%clk 0:01:59.8]} 20... Rxd7 {[%clk 0:02:19.1]} 21.
Qe2 {[%clk 0:01:35.1]} 21... Nb4 {[%clk 0:02:15.3]} 22. a3 {[%clk 0:01:30.4]}
22... Nd3 {[%clk 0:02:15.2]} 23. Bc3 {[%clk 0:01:17.5]} 23... b5 {[%clk
0:02:15.2]} 24. g3 {[%clk 0:01:14.5]} 24... c4 {[%clk 0:02:01.8]} 25. bxc4
{[%clk 0:01:14.2]} 25... bxc4 {[%clk 0:02:02.7]} 26. e4 {[%clk 0:01:14.6]} 26...
b5 {[%clk 0:01:48.1]} 27. exf5 {[%clk 0:01:13.3]} 27... gxf5 {[%clk 0:01:49]}
28. Qe6 {[%clk 0:01:10.3]} 28... Nc5 {[%clk 0:01:31.3]} 29. Qc6+ {[%clk
0:00:55.1]} 29... Rc7 {[%clk 0:01:30.1]} 30. Qe8+ {[%clk 0:00:50]} 30... Kb7
{[%clk 0:01:28.9]} 31. Be5 {[%clk 0:00:34.8]} 31... Rd7 {[%clk 0:01:28.6]} 32.
Qb8+ {[%clk 0:00:34.4]} 32... Kc6 {[%clk 0:01:28]} 33. Qc8+ {[%clk 0:00:26.4]}
33... Kd5 {[%clk 0:01:27.2]} 34. f4 {[%clk 0:00:23.9]} 34... Ke4 {[%clk
0:01:15.2]} 35. Kg2 {[%clk 0:00:17.1]} 35... Rd2+ {[%clk 0:01:10.2]} 36. Kh3
{[%clk 0:00:17.4]} 36... Na4 {[%clk 0:01:00.5]} 37. Qc6+ {[%clk 0:00:16.7]}
37... Ke3 {[%clk 0:00:58.8]} 38. Qe6 {[%clk 0:00:15.9]} 38... Bxa3 {[%clk
0:00:54.5]} 39. Bc3+ {[%clk 0:00:16.1]} 39... Kd3 {[%clk 0:00:54.2]} 40. Bxd2
{[%clk 0:00:15.6]} 40... Kxd2 {[%clk 0:00:54.1]} 41. Qxa6 {[%clk 0:00:14.5]}
41... c3 {[%clk 0:00:51.7]} 42. Qxb5 {[%clk 0:00:13.3]} 42... c2 {[%clk
0:00:52.2]} 43. Qxa4 {[%clk 0:00:12.2]} 43... c1=Q {[%clk 0:00:52.3]} 44. Qd7+
{[%clk 0:00:12.3]} 44... Ke3 {[%clk 0:00:50.7]} 45. Qxf5 {[%clk 0:00:11.4]}
45... Kf2 {[%clk 0:00:45.3]} 46. Qe4 {[%clk 0:00:09.5]} 46... Qc8+ {[%clk
0:00:42.1]} 47. f5 {[%clk 0:00:09.9]} 47... Qc1 {[%clk 0:00:26.9]} 48. Qd4+
{[%clk 0:00:08.4]} 48... Qe3 {[%clk 0:00:23.9]} 49. Qxe3+ {[%clk 0:00:08.2]}
49... Kxe3 {[%clk 0:00:24.8]} 50. Kg4 {[%clk 0:00:08.9]} 50... Be7 {[%clk
0:00:21.4]} 51. Kh5 {[%clk 0:00:07.6]} 51... Ke4 {[%clk 0:00:21.5]} 52. g4
{[%clk 0:00:07.7]} 52... Kf4 {[%clk 0:00:21.6]} 53. h4 {[%clk 0:00:07.4]} 53...
h6 {[%clk 0:00:18.7]} 54. Kxh6 {[%clk 0:00:04.5]} 54... Kxg4 {[%clk 0:00:19.1]}
55. Kg6 {[%clk 0:00:04.3]} 55... Bxh4 {[%clk 0:00:18.7]} 56. f6 {[%clk
0:00:04.7]} 56... Bxf6 {[%clk 0:00:19.4]} 1/2-1/2

[Event "*** Titled Tuesday Blitz"]
[Site "Chess.com"]
[Date "2021.03.09"]
[Round "6"]
[White "LubovMarkelova"]
[Black "zverr1"]
[Result "0-1"]
[WhiteElo "2224"]
[BlackElo "2437"]
[TimeControl "180+1"]
[EndTime "11:11:22 PST"]
[Termination "zverr1 won on time"]

1. Nf3 {[%clk 0:02:48.7]} 1... Nf6 {[%clk 0:02:57.1]} 2. c4 {[%clk 0:02:45.6]}
2... e6 {[%clk 0:02:57.2]} 3. Nc3 {[%clk 0:02:45.6]} 3... d5 {[%clk 0:02:58.1]}
4. e3 {[%clk 0:02:46.1]} 4... Be7 {[%clk 0:02:58.1]} 5. b3 {[%clk 0:02:45]} 5...
O-O {[%clk 0:02:58.4]} 6. Bb2 {[%clk 0:02:45.2]} 6... c5 {[%clk 0:02:58.8]} 7.
d4 {[%clk 0:02:43.4]} 7... cxd4 {[%clk 0:02:56.9]} 8. exd4 {[%clk 0:02:28.8]}
8... Nc6 {[%clk 0:02:56.8]} 9. Bd3 {[%clk 0:01:51.1]} 9... b6 {[%clk 0:02:54.5]}
10. O-O {[%clk 0:01:50.3]} 10... Bb7 {[%clk 0:02:51.2]} 11. Qe2 {[%clk
0:01:50.4]} 11... dxc4 {[%clk 0:02:35.7]} 12. bxc4 {[%clk 0:01:49.6]} 12... Rc8
{[%clk 0:02:25]} 13. Rfd1 {[%clk 0:01:41.7]} 13... Na5 {[%clk 0:02:19.8]} 14.
Ne5 {[%clk 0:01:34.8]} 14... Qc7 {[%clk 0:02:04.7]} 15. Rac1 {[%clk 0:01:21.7]}
15... Qb8 {[%clk 0:02:04.1]} 16. Ne4 {[%clk 0:01:07.8]} 16... Nxe4 {[%clk
0:02:00.8]} 17. Bxe4 {[%clk 0:01:07.5]} 17... Bxe4 {[%clk 0:02:01.7]} 18. Qxe4
{[%clk 0:01:07.7]} 18... Qb7 {[%clk 0:01:44.7]} 19. d5 {[%clk 0:01:04.4]} 19...
Bf6 {[%clk 0:01:34.7]} 20. Bc3 {[%clk 0:00:56.6]} 20... exd5 {[%clk 0:01:27.9]}
21. cxd5 {[%clk 0:00:51.6]} 21... Rfe8 {[%clk 0:01:20.6]} 22. f4 {[%clk
0:00:47.7]} 22... Nc4 {[%clk 0:01:12.5]} 23. Bd4 {[%clk 0:00:41.7]} 23... Nd6
{[%clk 0:01:10.7]} 24. Qf3 {[%clk 0:00:35.3]} 24... Qa6 {[%clk 0:01:07.3]} 25.
g4 {[%clk 0:00:23.2]} 25... Qa4 {[%clk 0:00:48.1]} 26. Ba1 {[%clk 0:00:16.4]}
26... Rxc1 {[%clk 0:00:41.6]} 27. Rxc1 {[%clk 0:00:16.2]} 27... g6 {[%clk
0:00:40.3]} 28. g5 {[%clk 0:00:11.7]} 28... Bg7 {[%clk 0:00:39.9]} 29. Ng4
{[%clk 0:00:11.4]} 29... Bxa1 {[%clk 0:00:35.4]} 30. Rxa1 {[%clk 0:00:12.3]}
30... Qd4+ {[%clk 0:00:35.2]} 31. Kg2 {[%clk 0:00:11.5]} 31... Qb2+ {[%clk
0:00:34.2]} 32. Kh3 {[%clk 0:00:10.4]} 32... Qxa1 {[%clk 0:00:32.9]} 33. Nf6+
{[%clk 0:00:10.5]} 33... Kg7 {[%clk 0:00:30.7]} 34. Nxe8+ {[%clk 0:00:10.5]}
34... Nxe8 {[%clk 0:00:31.6]} 35. Qe4 {[%clk 0:00:10.4]} 35... Qc3+ {[%clk
0:00:22.2]} 36. Kg2 {[%clk 0:00:09.4]} 36... Nd6 {[%clk 0:00:19.1]} 37. Qe7
{[%clk 0:00:07.6]} 37... Nf5 {[%clk 0:00:16.7]} 38. Qe5+ {[%clk 0:00:03.4]}
38... Qxe5 {[%clk 0:00:16.7]} 39. fxe5 {[%clk 0:00:04.3]} 39... Ne3+ {[%clk
0:00:17.6]} 40. Kf3 {[%clk 0:00:04.8]} 40... Nxd5 {[%clk 0:00:18.5]} 41. Ke4
{[%clk 0:00:05.6]} 41... Nc7 {[%clk 0:00:17.1]} 42. Kd4 {[%clk 0:00:05.7]} 42...
Kf8 {[%clk 0:00:16.3]} 43. h4 {[%clk 0:00:05.1]} 43... Ke7 {[%clk 0:00:16.5]}
44. Kc4 {[%clk 0:00:05.6]} 44... Ke6 {[%clk 0:00:16.5]} 45. Kd4 {[%clk
0:00:05.9]} 45... Na6 {[%clk 0:00:16.1]} 46. a4 {[%clk 0:00:05.3]} 46... Nb8
{[%clk 0:00:16.3]} 47. Ke4 {[%clk 0:00:04.9]} 47... Nd7 {[%clk 0:00:16.3]} 0-1